Cogmind - Beta 11.1 @@@ ROGUE MODE // 2022.07.18 @ 13:10:46 Player: tkc Result: Destroyed by L-31 Rogue with Katana Performance ------------- Evolutions (2) 1000 Regions Visited (7) 1400 Robots Destroyed (143) 715 Value Destroyed (2938) 2938 Prototype IDs (9) 180 Alien Tech Used (0) 0 Bonus (482) 482 TOTAL SCORE: 6715 Bonus ------- High Alert Combat Kills 215 Follower Combat Kills 49 Aligned with FarCom 300 Friendly Fire -82 Cogmind --------- Core Integrity 0/550 Matter 34/300 Energy 100/100 System Corruption 15% Temperature Cool (0) Movement Core (700) Ox13 Location -8/Materials Parts ------- > --- POWER (1) -------- (None) > --- PROPULSION (2) --- (None) > --- UTILITY (6) ------ High-capacity Storage Unit Advanced Targeting Computer > --- WEAPON (2) ------- (None) > --- INVENTORY (20) --- Light Ion Engine Light Nuclear Core Fission Core Advanced Treads Aerolev Unit Aerolev Unit Large Storage Unit High-capacity Matter Pod (86) Advanced Weight Redist. System Hacking Suite Hacking Suite Ion Cannon Makeshift Shrapnel Gun Assault Cannon Shock Bomb Launcher Rocket Launcher Improved Grenade Launcher Improved Datajack Peak State ------------ > --- POWER ------------ Heavy Ion Engine > --- PROPULSION ------- Armored Wheel Aerolev Unit > --- UTILITY ---------- High-capacity Storage Unit Terrain Scanner Improved Terrain Scan Processor Core Shielding Hardened Light Armor Plating Hacking Suite > --- WEAPON ----------- Makeshift Shrapnel Gun Flak Cannon > --- INVENTORY -------- Light Ion Engine Light Nuclear Core Fission Core Advanced Treads Armored Wheel Large Storage Unit High-capacity Matter Pod Advanced Weight Redist. System Improved Light Armor Plating Hacking Suite Hacking Suite Pulse Rifle Assault Cannon Heavy Assault Cannon Rocket Launcher Rocket Launcher Improved Grenade Launcher Improved Datajack Mace [Rating: 32] Favorites ----------- Power Light Ion Engine Engine Light Ion Engine Power Core Light Nuclear Core Propulsion Armored Wheel Treads Armored Treads Wheel Armored Wheel Hover Unit Aerolev Unit Utility High-capacity Storage Unit Device Terrain Scanner Storage High-capacity Storage Unit Processor Improved Terrain Scan Processor Hackware Hacking Suite Protection Core Shielding Weapon Flak Cannon Energy Gun EM Shotgun Energy Cannon Beam Cannon Ballistic Gun Light Assault Rifle Ballistic Cannon Flak Cannon Launcher Rocket Launcher Special Weapon Mining Laser Impact Weapon Mace Special Melee Weapon Improved Datajack Build | -11 -10 -10 -9 -9 -9 -8 -8 ------- Run | Scr Mat Min Mat Min Exi Min Mat Slots Evolved 4 | . . . 2 . . . 2 Power . | . . . . . . . . Propulsion . | . . . . . . . . Utility 4 | . . . 2 . . . 2 Weapon . | . . . . . . . . Parts Attached 121 | 8 17 7 30 11 5 1 42 Power 13 | 2 2 1 3 4 . . 1 Engine 12 | 2 2 1 2 4 . . 1 Core 1 | . . . 1 . . . . Reactor . | . . . . . . . . Propulsion 28 | 2 8 2 4 1 . . 11 Treads 10 | . 6 1 . . . . 3 Leg . | . . . . . . . . Wheel 15 | 2 2 1 4 1 . . 5 Hover 3 | . . . . . . . 3 Flight . | . . . . . . . . Utility 29 | 2 . 1 7 4 5 . 10 Device 7 | . . 1 1 1 3 . 1 Storage 5 | 2 . . 2 . 1 . . Processor 2 | . . . . . . . 2 Hackware 1 | . . . . . . . 1 Protection 14 | . . . 4 3 1 . 6 Artifact . | . . . . . . . . Weapon 51 | 2 7 3 16 2 . 1 20 Energy Gun 15 | 1 2 . 9 . . . 3 Energy Cannon 2 | . 1 . 1 . . . . Ballistic Gun 8 | 1 1 1 2 . . . 3 Ballistic Cannon 12 | . . 2 1 2 . 1 6 Launcher 3 | . . . 1 . . . 2 Special Weapon 3 | . 3 . . . . . . Impact Weapon 7 | . . . 2 . . . 5 Slashing Weapon . | . . . . . . . . Piercing Weapon . | . . . . . . . . Special Melee Weapon 1 | . . . . . . . 1 Unidentified Prototypes 9 | . . 1 2 . 2 . 4 Parts Lost 34 | . 1 . 12 7 . . 14 Power 6 | . 1 . 2 2 . . 1 Propulsion 7 | . . . 2 1 . . 4 Utility 12 | . . . 4 2 . . 6 Weapon 9 | . . . 4 2 . . 3 Highest Loss Streak 8 | . 1 . 3 3 . . 8 To Critical Strikes . | . . . . . . . . Average Slot Usage (%) 93 | . 100 100 94 82 76 88 95 Engine 10 | . 14 14 9 9 11 11 8 Treads 7 | . 21 16 11 . . . . Wheel 14 | . 7 11 10 21 22 22 16 Device 6 | . . 1 10 1 8 11 8 Storage 17 | . 28 26 12 22 22 22 10 Processor 2 | . . . . . . . 8 Hackware 2 | . . . . . . . 8 Protection 11 | . . . 16 15 13 11 15 Energy Gun 4 | . 14 2 9 . . . . Ballistic Gun 1 | . 6 . . . . . . Ballistic Cannon 8 | . . 22 5 10 . 11 8 Impact Weapon 3 | . . . 3 . . . 7 Naked Turns . | . . . . . . . . Heaviest Build 82 | 17 18 25 66 75 70 82 82 Greatest Support 40 | 20 40 40 20 30 24 24 24 Greatest Overweight (x) 13 | 1 . 2 6 5 2 3 13 Average Overweight (x) 1 | . . 1 2 2 1 3 2 Largest Inventory Capacity 20 | 8 8 8 20 20 20 20 20 Average Capacity 14 | 7 8 8 11 20 20 20 20 Most Carried 20 | 6 8 8 20 20 20 18 20 Average Carried 14 | 4 7 7 10 19 19 18 19 Final Capacity 20 | 8 8 8 20 20 20 20 20 Final Carried 20 | 6 8 8 20 20 20 18 18 Class Distribution -------------------- 69% | Mutant 16% | Scavenger-Assassin 7% | Scavenger-Mutant 3% | Scavenger-Skirmisher Dominant Class ---------------- Mutant | -10/Materials Mutant | -10/Mines Mutant | -9/Materials Scavenger-Mutant | -9/Mines Mutant | -9/Exiles Mutant | -8/Mines Scavenger-Assassin | -8/Materials Resources | -11 -10 -10 -9 -9 -9 -8 -8 ----------- Run | Scr Mat Min Mat Min Exi Min Mat Matter Collected 3496 | 310 330 261 861 715 . . 1019 Remotely . | . . . . . . . . Salvage Created 3409 | 137 330 279 1079 380 . . 1204 Parts 216 | 6 21 24 87 30 . . 48 Haulers Intercepted 7 | . 1 . 4 . . . 2 Recyclers Shooed 3 | . 2 . . . . . 1 Parts Field Recycled . | . . . . . . . . Retrieved Matter . | . . . . . . . . Parts Self-Destructed . | . . . . . . . . Prevented . | . . . . . . . . Kills | -11 -10 -10 -9 -9 -9 -8 -8 ------- Run | Scr Mat Min Mat Min Exi Min Mat Combat Hostiles Destroyed 99 | . 8 12 28 30 . . 21 Guns 21 | . 6 2 5 1 . . 7 Cannons 58 | . 2 10 11 26 . . 9 AOE 17 | . . . 9 3 . . 5 Classes Destroyed 15 | 2 6 1 2 2 . . 2 Worker 12 | . . 2 4 . . . 6 Builder 16 | . 1 2 3 2 . . 8 Tunneler 5 | 2 . 1 1 . . . 1 Hauler 7 | . 1 . 4 . . . 2 Recycler 6 | 1 . 1 . . . . 4 Mechanic 1 | . . . . . . . 1 Operator 3 | . 1 . . . . . 2 Watcher 7 | . 1 . 4 . . . 2 Swarmer 34 | . 2 11 8 7 . . 6 Grunt 36 | . 6 1 11 8 . . 10 Brawler 2 | . . . 1 1 . . . Duelist 1 | . . . . 1 . . . Sentry 12 | . . . 8 . . . 4 Hunter 1 | . . . . . . . 1 Assembled 13 | . . . . 13 . . . Best Kill Streak 11 | 2 2 4 6 11 . . 6 Combat Bots Only 11 | . 2 4 5 11 . . 5 Max Kills in Single Turn 2 | 1 1 1 2 2 . . 2 Gunslinging . | . . . . . . . . Exploded 2 | . . . 1 2 . . 1 Melee . | . . . . . . . . Uniques/NPCs Destroyed . | . . . . . . . . Combat | -11 -10 -10 -9 -9 -9 -8 -8 -------- Run | Scr Mat Min Mat Min Exi Min Mat Damage Taken 5874 | . 343 201 1552 1077 . 70 2631 Core 934 | . 14 39 170 143 . 12 556 Absorbed by Shields . | . . . . . . . . Redirected to Shielding 124 | . . . 102 . . 3 19 Regen/Repaired (Parts) 118 | . . . . . . . 118 Core Remaining (%) 65 | 100 . 78 . . . 18 . Volleys Fired 328 | 10 62 23 89 75 . 2 67 Largest 2 | 2 2 2 2 2 . 1 2 Hottest 150 | 70 150 110 90 78 . 60 96 Shots Fired 529 | 20 103 46 163 81 . 3 113 Gun 221 | 20 71 7 71 3 . . 49 Cannon 257 | . 6 39 84 75 . 3 50 Launcher 25 | . . . 8 3 . . 14 Special 26 | . 26 . . . . . . Kinetic 308 | 10 12 32 94 75 . 3 82 Thermal 132 | 10 91 14 . . . . 17 Explosive 25 | . . . 8 3 . . 14 Electromagnetic 64 | . . . 61 3 . . . Robot Hit Streak 29 | 4 29 8 18 6 . 2 12 Robot Miss Streak 11 | 1 3 8 10 3 . . 11 Penetration Max . | . . . . . . . . Secondary Targets 1 | . . . 1 . . . . Max Gunslinging Chain 1 | . . . 1 . . . . Shots Hit Robots 421 | 15 63 39 140 51 . 2 111 Core Hits 279 | 4 23 32 95 31 . . 94 Critical Kills 2 | . . . . . . . 2 Critical Parts Destroyed 6 | . . . 1 . . . 5 Critical Strikes 23 | 1 4 2 1 7 . . 8 Burn 8 | 1 4 2 . . . . 1 Blast 7 | . . . . 7 . . . Smash 8 | . . . 1 . . . 7 Melee Attacks 102 | . . . 15 . . . 87 Impact 102 | . . . 15 . . . 87 Slashing . | . . . . . . . . Piercing . | . . . . . . . . Sneak Attacks 24 | . . . 3 . . . 21 Combat Hostiles . | . . . . . . . . Follow-up Attacks . | . . . . . . . . Damage Inflicted 10849 | 183 864 505 2613 2956 . 119 3609 Guns 2392 | 183 643 73 784 7 . . 702 Cannons 5066 | . 71 432 1113 2632 . 119 699 Explosions 1611 | . . . 512 317 . . 782 Melee 1630 | . . . 204 . . . 1426 Ramming . | . . . . . . . . Kinetic 5698 | 94 121 361 1181 2632 . 119 1190 Thermal 1318 | 89 743 144 131 . . . 211 Explosive 1480 | . . . 381 317 . . 782 Electromagnetic 723 | . . . 716 7 . . . Impact 1630 | . . . 204 . . . 1426 Slashing . | . . . . . . . . Piercing . | . . . . . . . . Highest Corruption 15 | . . . 4 8 8 8 15 Average Corruption 6 | . . . 4 7 8 8 14 Corruption Purged . | . . . . . . . . Corruption Blocked . | . . . . . . . . Effects 111 | . . . 39 35 17 8 12 Message Errors 23 | . . . 11 4 5 2 1 Matter Fused 29 | . . . 12 10 3 1 3 Heat Flow Errors 16 | . . . 6 5 1 . 4 Energy Discharges 10 | . . . 2 3 3 1 1 Data Loss (minor) 15 | . . . 5 5 2 2 1 Data Loss (major) 3 | . . . . 1 1 1 . Misfires 9 | . . . 3 5 . 1 . Alerts 3 | . . . . . 2 . 1 Weapon Failures 3 | . . . . 2 . . 1 Overload Shots . | . . . . . . . . Overflow Damage 914 | . . . 98 269 . . 547 Projectiles 209 | . . . . 209 . . . Explosions 120 | . . . 20 60 . . 40 Melee 585 | . . . 78 . . . 507 Knockbacks 68 | . . 16 13 12 . 3 24 Impact 7 | . . . 1 . . . 6 Kinetic 54 | . . 15 12 11 . 2 14 Secondary 7 | . . 1 . 1 . 1 4 Self-Inflicted Damage 518 | . . . 346 111 . . 61 Shots 13 | . . . 8 3 . . 2 Rammed . | . . . . . . . . Targets Rammed . | . . . . . . . . Kicked . | . . . . . . . . Crushed . | . . . . . . . . Highest Temperature 412 | 45 181 192 218 299 201 25 412 Average Temperature 58 | 19 42 44 50 60 102 13 106 Received Heat Transfer 1467 | . 159 6 309 228 . 45 720 Effects 3 | . . . . 1 . . 2 Shutdowns 1 | . . . . . . . 1 Energy Bleed 1 | . . . . . . . 1 Interference 1 | . . . . 1 . . . Siege Activations . | . . . . . . . . Robots Corrupted 3 | . . . 3 . . . . Combat Hostiles 3 | . . . 3 . . . . Parts Fried 20 | . . . 7 . . . 13 Impact Corruptions 27 | . . . 4 . . . 23 Robots Melted . | . . . . . . . . Combat Hostiles . | . . . . . . . . Parts Melted 6 | 1 4 1 . . . . . Heat Transferred 3475 | 333 2106 518 . . . . 518 Parts Sabotaged . | . . . . . . . . Parts Stolen . | . . . . . . . . Parts Stripped . | . . . . . . . . Power Chain Reactions 4 | . . . 4 . . . . Missiles Intercepted . | . . . . . . . . Alert | -11 -10 -10 -9 -9 -9 -8 -8 ------- Run | Scr Mat Min Mat Min Exi Min Mat Peak Influence 672 | 15 316 223 643 594 . 1 672 Initial 226 | . 9 24 . 226 . . . Average 212 | 6 119 96 291 452 . . 186 Maximum Alert Level 2 | . 1 1 2 2 . . 2 Low Security (%) 55 | 100 91 96 22 . . 100 60 Level 1 26 | . 8 3 62 23 . . 23 Level 2 17 | . . . 15 76 . . 15 Level 3 . | . . . . . . . . Level 4 . | . . . . . . . . Level 5 . | . . . . . . . . High Security . | . . . . . . . . Max Security . | . . . . . . . . Squads Dispatched 13 | . 3 1 3 . . . 6 Investigation 5 | . 2 1 2 . . . . Extermination . | . . . . . . . . Reinforcement 6 | . 1 . 1 . . . 4 Assault 1 | . . . . . . . 1 Garrison 1 | . . . . . . . 1 Intercept . | . . . . . . . . Searches Triggered . | . . . . . . . . Construction Impeded 3 | . . . 1 . . . 2 Haulers Reinforced . | . . . . . . . . Active Scanning Responses . | . . . . . . . . Cargo Convoy Interrupts . | . . . . . . . . Stealth | -11 -10 -10 -9 -9 -9 -8 -8 --------- Run | Scr Mat Min Mat Min Exi Min Mat Distress Signals 8 | . 3 . 1 . . . 4 Communications Jammed . | . . . . . . . . Distress Signals . | . . . . . . . . Times Spotted 170 | . 18 17 40 35 . 3 57 Peak Tracking Total 17 | . 4 6 4 17 . 3 8 Tactical Retreats 16 | . 2 1 2 4 . . 7 Traps | -11 -10 -10 -9 -9 -9 -8 -8 ------- Run | Scr Mat Min Mat Min Exi Min Mat Traps Triggered 2 | . 2 . . . . . . Indirectly . | . . . . . . . . Trap Hack Attempts 2 | . . . . . . . 2 Triggered 1 | . . . . . . . 1 Disarmed . | . . . . . . . . Reprogrammed . | . . . . . . . . Reused . | . . . . . . . . Traps Extracted . | . . . . . . . . Installed . | . . . . . . . . Triggered . | . . . . . . . . Machines | -11 -10 -10 -9 -9 -9 -8 -8 ---------- Run | Scr Mat Min Mat Min Exi Min Mat Machines Disabled 12 | . 1 . 7 1 . . 3 Max in Single Turn 3 | . 1 . 3 1 . . 1 Machines Sabotaged . | . . . . . . . . Garrisons Compromised . | . . . . . . . . Overloaded Fab Kills . | . . . . . . . . Hacking | -11 -10 -10 -9 -9 -9 -8 -8 --------- Run | Scr Mat Min Mat Min Exi Min Mat Machines Accessed 33 | . 8 1 11 1 . . 12 Terminals 24 | . 6 . 9 1 . . 8 Fabricators . | . . . . . . . . Repair Stations 2 | . . . . . . . 2 Recycling Units 4 | . 2 . 1 . . . 1 Scanalyzers 2 | . . . 1 . . . 1 Garrison Access . | . . . . . . . . Total Hacks 98 | . 19 1 29 2 . . 47 Successful 69 | . 13 1 18 1 . . 36 Failed 28 | . 6 . 11 1 . . 10 Catastrophic 4 | . 1 . 3 . . . . Database Lockouts 1 | . . . . . . . 1 Manual 77 | . 14 . 25 3 1 . 34 Terminals 72 | . 17 . 25 2 . . 28 Fabricators . | . . . . . . . . Repair Stations 8 | . . . . . . . 8 Recycling Units 9 | . 2 . 3 . . . 4 Scanalyzers 8 | . . . 1 . . . 7 Garrison Access . | . . . . . . . . Terminal Hacks 29 | . 7 1 10 1 . . 10 Robot Analysis 5 | . 1 . 1 . . . 3 Open Door 1 | . . 1 . . . . . Level Access Points 1 | . . . . . . . 1 Branch Access Points 3 | . 1 . . . . . 2 Terminal Index 3 | . 1 . 1 . . . 1 Alert Level 2 | . . . 1 . . . 1 Unreport Threat 1 | . . . 1 . . . . Locate Traps 2 | . 1 . 1 . . . . Recall Investigation 1 | . 1 . . . . . . Recall Reinforcements 2 | . . . . . . . 2 Registered Components 1 | . . . 1 . . . . Zone Layout 7 | . 2 . 4 1 . . . Fabricator Hacks . | . . . . . . . . Repair Station Hacks 6 | . . . . . . . 6 Scan Component 4 | . . . . . . . 4 Repair 2 | . . . . . . . 2 Recycling Unit Hacks 9 | . 2 . 3 . . . 4 Report Inventory 5 | . 2 . 2 . . . 1 Retrieve Matter 4 | . . . 1 . . . 3 Scanalyzer 7 | . . . . . . . 7 Insert Component 3 | . . . . . . . 3 Analyze 4 | . . . . . . . 4 Garrison Access Hacks . | . . . . . . . . Unauthorized Hacks 18 | . 4 . 5 . . . 9 Terminals 18 | . 4 . 5 . . . 9 Assimilate 4 | . . . . . . . 4 Botnet 11 | . 3 . 4 . . . 4 Operators 3 | . 1 . 1 . . . 1 Fabricators . | . . . . . . . . Repair Stations . | . . . . . . . . Recycling Units . | . . . . . . . . Scanalyzers . | . . . . . . . . Garrison Access . | . . . . . . . . Data Cores Recovered . | . . . . . . . . Used . | . . . . . . . . Hacking Detections 28 | . 6 . 10 1 . . 11 Full Trace Events 5 | . 1 . 3 . . . 1 Feedback Events . | . . . . . . . . Feedback Blocked . | . . . . . . . . Robot Schematics Acquired . | . . . . . . . . Robots Built . | . . . . . . . . Authchips . | . . . . . . . . Time . | . . . . . . . . Total Robot Build Rating . | . . . . . . . . Part Schematics Acquired 3 | . . . . . . . 3 Parts Built . | . . . . . . . . Authchips . | . . . . . . . . Time . | . . . . . . . . Total Part Build Rating . | . . . . . . . . Parts Repaired 2 | . . . . . . . 2 Time 70 | . . . . . . . 70 Parts Recycled . | . . . . . . . . Recycled Matter . | . . . . . . . . Retrieved Matter 79 | . . . 79 . . . . Retrieved Components . | . . . . . . . . Parts Scanalyzed 3 | . . . . . . . 3 Part Schematics Acquired 3 | . . . . . . . 3 Parts Damaged . | . . . . . . . . Bothacking | -11 -10 -10 -9 -9 -9 -8 -8 ------------ Run | Scr Mat Min Mat Min Exi Min Mat Used RIF Installer . | . . . . . . . . Robots Hacked . | . . . . . . . . Non-combat . | . . . . . . . . Combat . | . . . . . . . . Robot Hacks Applied . | . . . . . . . . Relay Couplers Released . | . . . . . . . . Fabnet Peak Effective % . | . . . . . . . . Robots Rewired . | . . . . . . . . Allies Hacked . | . . . . . . . . Hacks Repelled . | . . . . . . . . Allies | -11 -10 -10 -9 -9 -9 -8 -8 -------- Run | Scr Mat Min Mat Min Exi Min Mat Total Allies 3 | . . 1 . . . . 2 Largest Group 2 | . . 1 . . . . 2 Highest-Rated Group 31 | . . 31 . . . . 20 Highest-Rated Ally 31 | . . 31 . . . . 10 Total Orders 3 | . . . . . . . 3 STAY 2 | . . . . . . . 2 FOLLOW 1 | . . . . . . . 1 Ally Attacks 13 | . . 13 . . . . . Total Damage 165 | . . 165 . . . . . Kills 3 | . . 3 . . . . . Allies Corrupted 1 | . . . . . . . 1 Allies Melted . | . . . . . . . . Intel | -11 -10 -10 -9 -9 -9 -8 -8 ------- Run | Scr Mat Min Mat Min Exi Min Mat Robot Analysis Total 4 | . 1 . 1 . . . 2 Derelict Logs Recovered 3 | . . 2 . 1 . . . Drone Launches . | . . . . . . . . Drone Recoveries . | . . . . . . . . Exploration | -11 -10 -10 -9 -9 -9 -8 -8 ------------- Run | Scr Mat Min Mat Min Exi Min Mat Turns Passed 9699 | 96 1081 1337 2126 1054 694 322 2989 Spaces Moved 5139 | 58 578 826 979 589 568 187 1354 Core 4 | 3 . . . . . . 1 Treads 1095 | . 359 277 453 . . . 6 Legs . | . . . . . . . . Wheels 3981 | 55 219 549 526 589 568 187 1288 Hover 59 | . . . . . . . 59 Flight . | . . . . . . . . Fastest Speed 50 | 50 80 95 95 120 105 135 120 Average Speed 138 | 78 129 141 174 128 119 135 131 Slowest Speed 700 | 95 160 250 250 165 120 135 700 Overloaded Moves . | . . . . . . . . Propulsion Burnouts . | . . . . . . . . Robots Hopped . | . . . . . . . . Cave-ins Triggered 2 | . . . . . . . 2 Exploration Rate (%) 70 | 4 96 99 76 95 92 32 70 Regions Visited 7 Branch Regions 4 Pre-discovered Areas 2 | . . 2 . . . . . Known Exits Taken 2 | . 1 1 . . . . . Unknown Exits Taken 5 | 1 . . 1 1 1 1 . Scrap Searched 4 | . . 3 . 1 . . . Spaces Dug 64 | . 16 . 7 . . . 41 Terrain Destroyed 309 | . 19 . 116 69 . 1 104 Melee 48 | . . . 7 . . . 41 Projectile 61 | . 19 . . 40 . 1 1 AOE 200 | . . . 109 29 . . 62 Terrain Rammed . | . . . . . . . . Walls Destroyed . | . . . . . . . . Machines Disabled . | . . . . . . . . Actions | -11 -10 -10 -9 -9 -9 -8 -8 --------- Run | Scr Mat Min Mat Min Exi Min Mat Total 6907 | 84 752 955 1212 774 581 253 2296 Wait 1091 | 2 83 83 72 81 . 64 706 Move 5132 | 57 577 825 978 588 567 186 1354 Hop . | . . . . . . . . Pick Up 68 | 7 7 7 18 9 2 . 18 Fast Attach 36 | 6 . 1 10 4 5 . 10 Attach 25 | 1 1 . 7 5 . 1 10 Detach 3 | . . . . 1 . . 2 Swap 61 | 1 16 6 13 2 . . 23 Drop 59 | . 6 10 10 9 7 . 17 Fire 328 | 10 62 23 89 75 . 2 67 Melee 102 | . . . 15 . . . 87 Ram . | . . . . . . . . Kick . | . . . . . . . . Crush . | . . . . . . . . Escape Stasis . | . . . . . . . . Rewire . | . . . . . . . . Trap 2 | . . . . . . . 2 Miscellaneous . | . . . . . . . . Route ------- -11/Scrapyard -10/Materials (discovered 5 exits: *Mat x3 / *Min x2) -10/Mines (discovered 2 exits: *Mat x2) -9/Materials (discovered 6 exits: *Mat x2 / *Min x2 / [*Sto x2]) -9/Mines (discovered 3 exits: *Mat x2 / *Exi) -9/Exiles (discovered 2 exits: [*Min x2]) -8/Mines -8/Materials (discovered 3 exits: *Fac x3) History --------- Turn | Location | Event 22 | -11/Scrapyard | Discovered new exit (range 15) 97 | -11/Scrapyard | Entered Materials 252 | -10/Materials | Discovered new exit (range 16) 255 | -10/Materials | Discovered new exit (range 16) 260 | -10/Materials | Identified exit to Mines 304 | -10/Materials | Build established: Mutant 349 | -10/Materials | Discovered new exit (range 13) 694 | -10/Materials | Discovered new exit (range 8) 1178 | -10/Materials | Entered Mines 1229 | -10/Mines | Escorted by a lone wolf Derelict 1253 | -10/Mines | Learned location of Storage (-9) 1424 | -10/Mines | Met a Derelict shopkeep closing up shop 1614 | -10/Mines | Identified exit to Materials 1851 | -10/Mines | Discovered exit to Materials (range 6) 2333 | -10/Mines | Found a damaged Exp. Sensor Array with a note attached 2336 | -10/Mines | Found Prototype Device 2336 | -10/Mines | Identified Exp. Sensor Array 2401 | -10/Mines | Received a Rocket Launcher from a helpful Derelict 2515 | -10/Mines | Entered Materials 2515 | -9/Materials | Evolved 2 slots: Utility x2 3067 | -9/Materials | Lost 3 parts (1p2w) 3207 | -9/Materials | Discovered new exit (range 11) 3735 | -9/Materials | Discovered new exit (range 10) 3994 | -9/Materials | Discovered new exit (range 12) 4059 | -9/Materials | Discovered new exit (range 16) 4171 | -9/Materials | Discovered new exit (range 15) 4256 | -9/Materials | Discovered new exit (range 14) 4641 | -9/Materials | Entered Mines 4672 | -9/Mines | Assembled infested the area 4678 | -9/Mines | Lost 3 parts (1p1u1w) 4698 | -9/Mines | Core integrity fell below 50% 4761 | -9/Mines | Destroyed 11 combat bots 4820 | -9/Mines | Discovered new exit (range 3) 5369 | -9/Mines | A weapon hastily lodged in a ceiling crevice suddenly fell to the ground 5458 | -9/Mines | Discovered new exit (range 8) 5546 | -9/Mines | Deemed a non-threat by the Exiles lab entrance 5546 | -9/Mines | Discovered new exit (range 5) 5564 | -9/Mines | Build established: Scavenger-Mutant 5695 | -9/Mines | Entered Exiles 5717 | -9/Exiles | Discovered new exit (range 14) 5746 | -9/Exiles | Met 8R-AWN 5765 | -9/Exiles | Met EX-HEX 5799 | -9/Exiles | Met EX-BIN 5823 | -9/Exiles | Aligned with FarCom system 5824 | -9/Exiles | Given EX-Vault access code 5853 | -9/Exiles | Opened EX-Vault 5861 | -9/Exiles | Found Prototype Device 5861 | -9/Exiles | Identified Trap Reconfigurator 5867 | -9/Exiles | Found Prototype Device 5867 | -9/Exiles | Identified Skeleton Box 5899 | -9/Exiles | Warned to stay clear of 0b10 Research branches 6014 | -9/Exiles | Met EX-DEC 6107 | -9/Exiles | Discovered new exit (range 11) 6162 | -9/Exiles | Build established: Mutant 6199 | -9/Exiles | Visited The Gauntlet 6389 | -9/Exiles | Left Exiles lab with Skeleton Box 6389 | -9/Exiles | Entered Mines 6689 | -8/Mines | Core integrity fell below 20% 6702 | -8/Mines | Discovered new exit (range 7) 6711 | -8/Mines | Entered Materials 6711 | -8/Materials | Evolved 2 slots: Utility x2 7081 | -8/Materials | Repaired Broken Arm. Wheel 7243 | -8/Materials | Discovered new exit (range 16) 7616 | -8/Materials | Build established: Scavenger-Assassin 7617 | -8/Materials | Identified exit to Factory 7697 | -8/Materials | Central database locked down 8430 | -8/Materials | Repaired Core Shielding 9461 | -8/Materials | Crushed by falling debris 9474 | -8/Materials | Crushed by falling debris 9474 | -8/Materials | System corruption reached 10% 9492 | -8/Materials | Garrison activated, responded to threat 9511 | -8/Materials | First assault squad dispatched 9517 | -8/Materials | Core integrity fell below 50% 9566 | -8/Materials | Lost 8 parts (2n5u1w) 9688 | -8/Materials | Core integrity fell below 20% 9700 | -8/Materials | Destroyed by L-31 Rogue with Katana Last Messages --------------- 09633_ C-30 ARC bursts open, deploying its payload. 09633_ G-47 Trooper unfolds itself. 09633_ L-31 Rogue unfolds itself. 09633_ G-47 Trooper unfolds itself. 09633_ M-28 Smith unfolds itself. 09635_ Critical hit (Burn: +37). 09645_ System corrupted: Matter fused (-9). 09646_ Pulse Rifle destroyed. 09647_ Critical hit (Burn: +37). 09649_ Hvy. Ion Engine destroyed. 09662_ System corrupted: Heat flow error (+166). 09666_ Imp. Light Armor Plating destroyed. 09668_ Processing Tank disabled. 09671_ Aerolev Unit destroyed. 09677_ System corrupted: Matter fused (-7). 09685_ Critical hit (Burn: +37). 09689_ L-31 Rogue suffers critical hit (Burn). 09694_ Aerolev Unit severed. 09695_ System corrupted: Energy discharge (-21). 09698_ Mace severed. Map ----- +----------------------------------------------------+ | # ## ???? ??# # ##########??? | | # ## ? ??? # ## # # #??? | | #########? ?? #o #" # """ #??? | | ######?## ? # ##"T + """ #??? | | #######?#??## ##### ##"" # # """ #??? | | #######??####?#?#?# ## ## ## #??? | | ############ ? # ######## ## """ #??? | | ##??#?#####? ?# #?#?##?# ## """ #??? | | ####?####### ??/ #?####?# + """ #??? | | ###########? ? # ########% ## #??? | | #####??####?# ? / ########+############??? | | !#?#######?###? ! ## ## ] " = #???????? | | !####?####?#?######### ## #???????? | | ### #####?####### ## """ """ """ #???????? | | ### ?" #?#?#####?### ## """ """ """ #???????? | | ### Y" ######?###??# ## """ """ """ #???????? | | ### "" ############# ## #???????? | | ##? #?## # ######"#########???????? | | ### ? ##?#""""" #%###### #???????? | | ### ####""""" #+###### [ #???????? | | ### "?" ##?#""""" # = # #???????? | | # ""? ####""""" # # """"" !#???????? | | ""#?""" ####""""" #"S # """" #???????? | | T"# """ ####""""" #""" # """"" #???????? | | ""# ####""""" # "" # #???????? | | #! ### # @= # #???????? | | #####+###########/########l######+#####???????? | | = g #????????? | | ] % g g #????????? | | = #????????? | | ##### ####+######+### #######+########????? | | ?#### ## T] # =# ####?# #????? | | ##### ## # ? # ###??# #????? | | ?#### ##] =#?""" # ###??# #????? | | ##### ## =[#?""" # ?#???# #????? | | ##### ## [[[# """ # ?????# #????? | | ##### ## " "*+ [# ?????# #????? | | ##### ## """ ######## #?#??# #????? | | ## """[######## ?#????# #????? | | ## ###??#?# ?#????#####+########## | | ## ! ######?# ?#?####### # # | | ###+#########+#####?## + # | | # #?# ##?###???????####### # != # | | # ### ####??#????#???????## ## = =# | | # #?# ###?#???????????????# ########## | | # """ #?# #????? ???????????###+######???? | | # """"" ### ##???? ???????????#[ #???? | | # """"" ## #?????????????????# #???? | | # """"" + #?????"???????????#] #???? | | # """ ## ##??"?????????????#[ #???? | +----------------------------------------------------+ Best States ------------- Heat Dissipation 31 Energy Generation 14 Energy Capacity 280 Matter Stores 300 Matter Capacity 300 Sight Range 16 Robot Scan Range 20 Terrain Scan Range 14 Terrain Scan Density 110 Additional Mass Support 6 Armor Coverage 375 Core Shielding 20 Propulsion Shielding 33 Evasion (%) 44 Targeting Accuracy 8 Recoil Reduction 2 Offensive Hacking 10 Item Schematics ----------------- Hacking Suite | -8/Materials | Scanalyzed Rocket Launcher | -8/Materials | Scanalyzed Aerolev Unit | -8/Materials | Scanalyzed Robot Schematics ------------------ None Fabricated ------------ Nothing Alien Tech Used ----------------- None Achievements -------------- None Challenges ------------ None Game ------ Seed DimensionalCoolingMachine Manual? 0 Play Time 02:00:19 Cumulative 74.7 hours Start 2022.07.18 @ 11:07:50 End 2022.07.18 @ 13:10:46 Sessions 3 Manual Loads 0 Difficulty Rogue Special Mode None Game No. 49 Rogue 48 Adventurer 0 Explorer 1 Win Type - Total 0 Types 0/0/0/0/0/0/0/0/0 Lore% 20 Gallery% 33 Achievement% 24 Wizard Run 0 Options --------- ASCII 0 Keyboard 0 Movement Mouse Keybinds 0 Fullscreen 1 Font 18/X11 Map View 76x50 Tactical HUD 1 Map Filters NONE Filters NONE Steam 1 RUN: a6d7ef48-5aae-40fe-8e1e-1dea293bbe63